[Event "17th Memorial Lezcano Montalvo 2025"]
[Site "Gran Canaria"]
[Date "2025.04.18"]
[Round "7.8"]
[White "Maerevoet, Sim"]
[Black "Fiorito, Fabian"]
[Result "1-0"]
[Annotator "RC"]
[ECO "D05"]
[WhiteElo "2451"]
[BlackElo "2268"]
[PlyCount "75"]
[EventDate "2025.04.13"]
[EventType "swiss"]
[EventCountry "ESP"]
[SourceTitle "playchess.com"]
[Source "ChessBase"]
[SourceQuality "1"]
[TimeControl "5400+30"]

1. d4 {[%emt 0:00:05]} d5 {[%emt 0:00:33]} 2. Nf3 {[%emt 0:00:21]} Nf6 {[%emt 0:00:58]} 3. e3 {[%emt 0:00:20]} e6 {[%emt 0:00:55]} 4. Bd3 {[%emt 0:00:17]} c5 {[%emt 0:01:26]} 5. b3 {[%emt 0:00:34]} Be7 {[%emt 0:01:23]} 6. O-O {[%emt 0:00:28]} O-O {[%emt 0:01:11]} 7. Bb2 {[%emt 0:00:48]} b6 {[%emt 0:00:41]} 8. Qe2 {[%emt 0:07:51]} Nbd7 {[%emt 0:03:20]} 9. a4 {[%emt 0:02:23]} a6 {[%emt 0:09:18]} 10. Nbd2 {[%emt 0:01:56]} Bb7 {[%emt 0:00:32]} 11. Ne5 {[%emt 0:05:04]} Re8 {[%emt 0:12:58]} 12. f4 {[%emt 0:03:52]} Ne4 {[%emt 0:05:53]} 13. Nxe4 {[%emt 0:04:22]} dxe4 {[%emt 0:01:01]} 14. Bc4 {[%emt 0:00:09]} cxd4 {[%emt 0:16:26]} 15. Nxd7 {[%emt 0:15:49]} Qxd7 {[%emt 0:00:30]} 16. Bxd4 {[%emt 0:00:08]} Bc5 {[%emt 0:06:38]} 17. Bxc5 {[%emt 0:01:07]} bxc5 {[%emt 0:00:06]} 18. Rad1 {[%emt 0:00:49]} Qc8 {[%emt 0:08:19]} 19. Qh5 {[%emt 0:08:21]} g6 {[%emt 0:06:35]} 20. Qe5 {[%emt 0:01:28]} a5 {[%emt 0:01:48]} 21. Rd6 {[%emt 0:04:18]} Ba6 {[%emt 0:00:31]} 22. Qxe4 {[%emt 0:03:44]} Bxc4 {[%emt 0:00:28]} 23. Qxc4 {[%emt 0:00:54]} Rd8 {[%emt 0:04:02]} 24. Rfd1 {[%emt 0:00:38]} Rxd6 {[%emt 0:00:03]} 25. Rxd6 {[%emt 0:00:07]} Qc7 {[%emt 0:00:32]} 26. Qd3 {[%emt 0:07:55]} Rc8 {[%emt 0:00:00]} 27. Rd7 {[%emt 0:01:11]} Qb8 {[%emt 0:03:10]} 28. h3 {[%emt 0:06:27]} Qb4 {[%emt 0:01:19]} 29. Rxf7 {[%emt 0:01:15]} Kxf7 {[%emt 0:02:23]} 30. Qd7+ {[%emt 0:00:05]} Kf6 {[%emt 0:00:43]} 31. Qxc8 {[%emt 0:00:11]} Kf5 {[%emt 0:00:24]} 32. Kh2 {[%emt 0:06:23]} Qc3 {[%emt 0:04:12]} 33. g4+ {[%emt 0:06:33]} Ke4 {[%emt 0:00:04]} 34. Qxe6+ {[%emt 0:00:07]} Kf3 {[%emt 0:00:03]} 35. Qd5+ {[%emt 0:00:20]} Kf2 {[%emt 0:00:44]} 36. Qg2+ {[%emt 0:01:11]} Ke1 {[%emt 0:00:02]} 37. e4 {[%emt 0:01:42]} Kd1 {[%emt 0:02:06]} 38. Qf1+ {[%emt 0:01:50]} 1-0

[Event "17th Memorial Lezcano Montalvo 2025"]
[Site "Gran Canaria"]
[Date "2025.04.18"]
[Round "7.9"]
[White "Narciso Dublan, Marc"]
[Black "Ambartsumova, Karina"]
[Result "1-0"]
[Annotator "RC"]
[ECO "D02"]
[WhiteElo "2376"]
[BlackElo "2405"]
[PlyCount "81"]
[EventDate "2025.04.13"]
[EventType "swiss"]
[EventCountry "ESP"]
[SourceTitle "playchess.com"]
[Source "ChessBase"]
[SourceQuality "1"]
[TimeControl "5400+30"]

1. d4 {[%emt 0:01:00]} d5 {[%emt 0:01:36]} 2. Nf3 {[%emt 0:00:50]} Nf6 {[%emt 0:00:23]} 3. Bf4 {[%emt 0:00:22]} c5 {[%emt 0:03:35]} 4. e3 {[%emt 0:00:17]} Nc6 {[%emt 0:00:02]} 5. Nbd2 {[%emt 0:00:59]} Bg4 {[%emt 0:06:56]} 6. c3 {[%emt 0:02:06]} e6 {[%emt 0:00:07]} 7. Qa4 {[%emt 0:01:38]} Nd7 {[%emt 0:07:12]} 8. Bb5 {[%emt 0:10:48]} Qc8 {[%emt 0:05:10]} 9. h3 {[%emt 0:19:32]} Bh5 {[%emt 0:03:08]} 10. O-O {[%emt 0:02:04]} a6 {[%emt 0:04:54]} 11. Bd3 {[%emt 0:00:18]} Be7 {[%emt 0:03:53]} 12. e4 {[%emt 0:07:27]} dxe4 {[%emt 0:11:40]} 13. Bxe4 {[%emt 0:00:34]} O-O {[%emt 0:01:57]} 14. Ne5 {[%emt 0:09:15]} Ndxe5 {[%emt 0:08:23]} 15. dxe5 {[%emt 0:01:14]} Rd8 {[%emt 0:01:31]} 16. Qc2 {[%emt 0:02:56]} Bg6 {[%emt 0:00:07]} 17. Bxg6 {[%emt 0:06:37]} hxg6 {[%emt 0:00:51]} 18. Nf3 {[%emt 0:00:32]} Qd7 {[%emt 0:05:20]} 19. Rfd1 {[%emt 0:00:17]} Qc7 {[%emt 0:00:07]} 20. Re1 {[%emt 0:02:24]} Rd5 {[%emt 0:03:39]} 21. h4 {[%emt 0:01:57]} Rad8 {[%emt 0:00:50]} 22. g3 {[%emt 0:04:56]} c4 {[%emt 0:02:57]} 23. Qe4 {[%emt 0:02:12]} b5 {[%emt 0:01:16]} 24. Kg2 {[%emt 0:00:21]} Rd3 {[%emt 0:06:47]} 25. Rh1 {[%emt 0:00:47]} Qd7 {[%emt 0:00:19]} 26. a4 {[%emt 0:03:16]} b4 {[%emt 0:04:01]} 27. cxb4 {[%emt 0:05:29]} Nxb4 {[%emt 0:01:23]} 28. Rac1 {[%emt 0:00:28]} Rb3 {[%emt 0:05:52]} 29. Rxc4 {[%emt 0:01:28]} Qd5 {[%emt 0:03:07]} 30. Qxd5 {[%emt 0:02:26]} Nxd5 {[%emt 0:00:19]} 31. Bc1 {[%emt 0:02:43]} Rb7 {[%emt 0:04:11]} 32. a5 {[%emt 0:01:59]} Rc7 {[%emt 0:01:31]} 33. Rxc7 {[%emt 0:00:36]} Nxc7 {[%emt 0:00:01]} 34. Bd2 {[%emt 0:00:33]} Rb8 {[%emt 0:04:25]} 35. Rc1 {[%emt 0:07:39]} Bd8 {[%emt 0:00:00]} 36. Bg5 {[%emt 0:00:00]} f6 {[%emt 0:00:00]} 37. exf6 {[%emt 0:00:00]} gxf6 {[%emt 0:00:00]} 38. Bxf6 {[%emt 0:00:00]} Bxf6 {[%emt 0:00:20]} 39. Rxc7 {[%emt 0:00:00]} Rb5 {[%emt 0:00:16]} 40. b4 {[%emt 0:00:00]} Rxb4 {[%emt 0:01:20]} 41. Rc6 {[%emt 0:00:00]} 1-0

[Event "17th Memorial Lezcano Montalvo 2025"]
[Site "Gran Canaria"]
[Date "2025.04.18"]
[Round "7.10"]
[White "Calzetta Ruiz, Monica"]
[Black "Gomez Ledo, Roberto Carlos"]
[Result "0-1"]
[Annotator "RC"]
[ECO "C42"]
[WhiteElo "2224"]
[BlackElo "2396"]
[PlyCount "98"]
[EventDate "2025.04.13"]
[EventType "swiss"]
[EventCountry "ESP"]
[SourceTitle "playchess.com"]
[Source "ChessBase"]
[SourceQuality "1"]
[TimeControl "5400+30"]

1. e4 {[%emt 0:00:15]} e5 {[%emt 0:01:27]} 2. Nf3 {[%emt 0:00:08]} Nf6 {[%emt 0:00:19]} 3. Nxe5 {[%emt 0:00:56]} d6 {[%emt 0:00:09]} 4. Nf3 {[%emt 0:00:06]} Nxe4 {[%emt 0:00:09]} 5. d4 {[%emt 0:01:36]} d5 {[%emt 0:00:23]} 6. Bd3 {[%emt 0:00:28]} Bf5 {[%emt 0:01:22]} 7. O-O {[%emt 0:00:51]} Be7 {[%emt 0:00:39]} 8. Re1 {[%emt 0:01:50]} O-O {[%emt 0:01:05]} 9. Nbd2 {[%emt 0:01:11]} Nd6 {[%emt 0:00:56]} 10. Bxf5 {[%emt 0:03:22]} Nxf5 {[%emt 0:00:09]} 11. Nf1 {[%emt 0:00:15]} c6 {[%emt 0:00:56]} 12. Qd3 {[%emt 0:07:42]} Nd6 {[%emt 0:01:01]} 13. Bf4 {[%emt 0:04:27]} Na6 {[%emt 0:01:05]} 14. Ng3 {[%emt 0:19:06]} Nc7 {[%emt 0:00:18]} 15. Bxd6 {[%emt 0:21:26]} Bxd6 {[%emt 0:00:15]} 16. Nf5 {[%emt 0:00:03]} f6 {[%emt 0:17:03]} 17. Re2 {[%emt 0:08:40]} Qd7 {[%emt 0:03:00]} 18. Rae1 {[%emt 0:01:42]} Rfe8 {[%emt 0:03:43]} 19. Nxd6 {[%emt 0:00:17]} Qxd6 {[%emt 0:00:52]} 20. g3 {[%emt 0:09:43]} Rxe2 {[%emt 0:03:18]} 21. Rxe2 {[%emt 0:00:04]} Re8 {[%emt 0:00:28]} 22. Nh4 {[%emt 0:01:59]} Rxe2 {[%emt 0:09:51]} 23. Qxe2 {[%emt 0:00:02]} Qd7 {[%emt 0:00:19]} 24. c3 {[%emt 0:01:14]} Nb5 {[%emt 0:04:17]} 25. Ng2 {[%emt 0:05:43]} Nd6 {[%emt 0:02:30]} 26. Nf4 {[%emt 0:00:03]} Nc4 {[%emt 0:03:29]} 27. b3 {[%emt 0:00:22]} Nd6 {[%emt 0:00:29]} 28. a4 {[%emt 0:04:00]} g6 {[%emt 0:05:37]} 29. Kg2 {[%emt 0:00:10]} Kf7 {[%emt 0:00:26]} 30. h4 {[%emt 0:01:25]} Qf5 {[%emt 0:02:24]} 31. f3 {[%emt 0:01:12]} Qd7 {[%emt 0:03:18]} 32. g4 {[%emt 0:02:44]} Nc8 {[%emt 0:09:44]} 33. Qe3 {[%emt 0:00:19]} Nd6 {[%emt 0:04:05]} 34. Qe2 {[%emt 0:00:55]} Ne8 {[%emt 0:04:37]} 35. Kf2 {[%emt 0:00:14]} Qd6 {[%emt 0:00:57]} 36. Qe3 {[%emt 0:00:06]} Ng7 {[%emt 0:00:16]} 37. b4 {[%emt 0:02:38]} h5 {[%emt 0:02:34]} 38. Kg2 {[%emt 0:00:16]} hxg4 {[%emt 0:02:48]} 39. fxg4 {[%emt 0:00:02]} Qd7 {[%emt 0:01:22]} 40. Kf3 {[%emt 0:00:03]} Qe8 {[%emt 0:02:24]} 41. Qd3 {[%emt 0:01:46]} f5 {[%emt 0:00:21]} 42. gxf5 {[%emt 0:00:14]} gxf5 {[%emt 0:00:57]} 43. h5 {[%emt 0:00:03]} Kf6 {[%emt 0:03:20]} 44. h6 {[%emt 0:00:41]} Nh5 {[%emt 0:00:59]} 45. h7 {[%emt 0:01:58]} Nxf4 {[%emt 0:00:26]} 46. Kxf4 {[%emt 0:00:06]} Qb8+ {[%emt 0:00:38]} 47. Kf3 {[%emt 0:00:03]} Qh2 {[%emt 0:00:21]} 48. Qe3 {[%emt 0:00:39]} Qh3+ {[%emt 0:01:05]} 49. Kf4 {[%emt 0:00:06]} Qg4# {[%emt 0:00:10]} 0-1

[Event "17th Memorial Lezcano Montalvo 2025"]
[Site "Gran Canaria"]
[Date "2025.04.18"]
[Round "7.11"]
[White "Rodriguez Lopez, David"]
[Black "Barski, Radoslaw"]
[Result "0-1"]
[Annotator "RC"]
[ECO "B30"]
[WhiteElo "2182"]
[BlackElo "2385"]
[PlyCount "112"]
[EventDate "2025.04.13"]
[EventType "swiss"]
[EventCountry "ESP"]
[SourceTitle "playchess.com"]
[Source "ChessBase"]
[SourceQuality "1"]
[TimeControl "5400+30"]

1. e4 {[%emt 0:00:06]} c5 {[%emt 0:02:17]} 2. Nf3 {[%emt 0:00:12]} Nc6 {[%emt 0:00:35]} 3. Bb5 {[%emt 0:00:09]} Nf6 {[%emt 0:03:55]} 4. Bxc6 {[%emt 0:00:06]} dxc6 {[%emt 0:00:06]} 5. d3 {[%emt 0:00:06]} Bg4 {[%emt 0:02:48]} 6. h3 {[%emt 0:00:19]} Bh5 {[%emt 0:00:28]} 7. Nbd2 {[%emt 0:01:06]} Nd7 {[%emt 0:01:42]} 8. b3 {[%emt 0:06:15]} e5 {[%emt 0:00:53]} 9. Bb2 {[%emt 0:01:24]} f6 {[%emt 0:04:16]} 10. a4 {[%emt 0:02:34]} Be7 {[%emt 0:13:18]} 11. Nf1 {[%emt 0:05:31]} Bf7 {[%emt 0:03:20]} 12. Ne3 {[%emt 0:02:11]} Nf8 {[%emt 0:07:01]} 13. Nf5 {[%emt 0:07:34]} Ne6 {[%emt 0:00:07]} 14. Qd2 {[%emt 0:02:09]} Bf8 {[%emt 0:01:58]} 15. g3 {[%emt 0:09:32]} h5 {[%emt 0:09:44]} 16. Ne3 {[%emt 0:05:53]} a5 {[%emt 0:04:27]} 17. O-O {[%emt 0:04:41]} Bd6 {[%emt 0:07:22]} 18. h4 {[%emt 0:07:52]} Qd7 {[%emt 0:02:06]} 19. Qe2 {[%emt 0:02:02]} Nd4 {[%emt 0:03:35]} 20. Nxd4 {[%emt 0:08:24]} cxd4 {[%emt 0:00:06]} 21. Ng2 {[%emt 0:02:15]} Qh3 {[%emt 0:05:42]} 22. Qf3 {[%emt 0:04:48]} Be6 {[%emt 0:03:20]} 23. Ne1 {[%emt 0:00:06]} O-O-O {[%emt 0:04:36]} 24. Qg2 {[%emt 0:01:35]} g5 {[%emt 0:00:54]} 25. Nf3 {[%emt 0:00:44]} Rhg8 {[%emt 0:02:04]} 26. Bc1 {[%emt 0:08:52]} gxh4 {[%emt 0:00:10]} 27. Qxh3 {[%emt 0:01:02]} Bxh3 {[%emt 0:00:08]} 28. Nxh4 {[%emt 0:00:03]} Bxf1 {[%emt 0:00:22]} 29. Kxf1 {[%emt 0:00:01]} Bb4 {[%emt 0:00:41]} 30. Ba3 {[%emt 0:01:32]} Bxa3 {[%emt 0:03:32]} 31. Rxa3 {[%emt 0:00:01]} Kc7 {[%emt 0:00:04]} 32. Ke2 {[%emt 0:00:33]} Rb8 {[%emt 0:01:41]} 33. Ra1 {[%emt 0:00:19]} b5 {[%emt 0:03:23]} 34. axb5 {[%emt 0:01:29]} cxb5 {[%emt 0:00:01]} 35. Rxa5 {[%emt 0:00:14]} Kb6 {[%emt 0:00:01]} 36. Ra1 {[%emt 0:00:14]} Ra8 {[%emt 0:00:01]} 37. Rh1 {[%emt 0:00:10]} Ra2 {[%emt 0:00:15]} 38. Kd2 {[%emt 0:00:14]} Rc8 {[%emt 0:00:18]} 39. Rc1 {[%emt 0:00:23]} Kc5 {[%emt 0:00:48]} 40. Nf5 {[%emt 0:00:31]} Rc7 {[%emt 0:00:17]} 41. Rh1 {[%emt 0:01:54]} Kb4 {[%emt 0:00:16]} 42. Rc1 {[%emt 0:00:02]} Ra6 {[%emt 0:00:44]} 43. Rb1 {[%emt 0:01:00]} Ra2 {[%emt 0:04:57]} 44. Rc1 {[%emt 0:00:01]} Rca7 {[%emt 0:00:42]} 45. Rh1 {[%emt 0:01:32]} Ra1 {[%emt 0:00:16]} 46. Rxa1 {[%emt 0:00:36]} Rxa1 {[%emt 0:00:07]} 47. Ng7 {[%emt 0:00:01]} Rf1 {[%emt 0:00:52]} 48. Ke2 {[%emt 0:00:32]} Rh1 {[%emt 0:00:02]} 49. Kd2 {[%emt 0:00:05]} Rh2 {[%emt 0:00:07]} 50. Ke2 {[%emt 0:00:37]} Kc3 {[%emt 0:00:25]} 51. Ne8 {[%emt 0:00:01]} h4 {[%emt 0:03:09]} 52. g4 {[%emt 0:00:37]} Rg2 {[%emt 0:00:21]} 53. Nxf6 {[%emt 0:00:19]} h3 {[%emt 0:01:12]} 54. Kf1 {[%emt 0:00:06]} Kxc2 {[%emt 0:00:14]} 55. f4 {[%emt 0:00:01]} Rg3 {[%emt 0:00:55]} 56. Kf2 {[%emt 0:00:05]} exf4 {[%emt 0:00:40]} 0-1

[Event "17th Memorial Lezcano Montalvo 2025"]
[Site "Gran Canaria"]
[Date "2025.04.18"]
[Round "7.12"]
[White "Kovchan, Alexander"]
[Black "Garcia Padron, Juan"]
[Result "1-0"]
[Annotator "RC"]
[ECO "B81"]
[WhiteElo "2433"]
[BlackElo "2155"]
[PlyCount "55"]
[EventDate "2025.04.13"]
[EventType "swiss"]
[EventCountry "ESP"]
[SourceTitle "playchess.com"]
[Source "ChessBase"]
[SourceQuality "1"]
[TimeControl "5400+30"]

1. e4 {[%emt 0:00:02]} c5 {[%emt 0:03:16]} 2. Nf3 {[%emt 0:00:10]} d6 {[%emt 0:00:06]} 3. d4 {[%emt 0:00:07]} cxd4 {[%emt 0:00:10]} 4. Nxd4 {[%emt 0:00:05]} Nf6 {[%emt 0:00:04]} 5. Nc3 {[%emt 0:00:07]} e6 {[%emt 0:00:07]} 6. g4 {[%emt 0:01:17]} a6 {[%emt 0:02:00]} 7. g5 {[%emt 0:01:40]} Nfd7 {[%emt 0:00:15]} 8. h4 {[%emt 0:01:10]} Nc6 {[%emt 0:00:37]} 9. Be3 {[%emt 0:03:18]} Qc7 {[%emt 0:02:54]} 10. f4 {[%emt 0:09:04]} Be7 {[%emt 0:11:36]} 11. Bg2 {[%emt 0:01:47]} b5 {[%emt 0:07:29]} 12. O-O {[%emt 0:04:01]} b4 {[%emt 0:03:48]} 13. Nxc6 {[%emt 0:06:34]} bxc3 {[%emt 0:03:35]} 14. Nxe7 {[%emt 0:01:31]} Kxe7 {[%emt 0:00:14]} 15. bxc3 {[%emt 0:03:04]} Rb8 {[%emt 0:00:09]} 16. f5 {[%emt 0:03:53]} e5 {[%emt 0:06:09]} 17. f6+ {[%emt 0:04:51]} gxf6 {[%emt 0:00:54]} 18. gxf6+ {[%emt 0:00:50]} Ke8 {[%emt 0:00:52]} 19. Qg4 {[%emt 0:04:42]} Qxc3 {[%emt 0:20:05]} 20. Bh6 {[%emt 0:01:06]} Nxf6 {[%emt 0:09:14]} 21. Qg7 {[%emt 0:01:51]} Rg8 {[%emt 0:00:10]} 22. Qxf6 {[%emt 0:00:13]} Rxg2+ {[%emt 0:04:38]} 23. Kxg2 {[%emt 0:01:10]} Qh3+ {[%emt 0:00:04]} 24. Kf2 {[%emt 0:00:17]} Bg4 {[%emt 0:00:20]} 25. Rh1 {[%emt 0:09:46]} Qc3 {[%emt 0:01:49]} 26. Bg5 {[%emt 0:01:48]} Kd7 {[%emt 0:06:05]} 27. Rad1 {[%emt 0:07:21]} Bxd1 {[%emt 0:01:31]} 28. Rxd1 {[%emt 0:00:06]} 1-0

[Event "17th Memorial Lezcano Montalvo 2025"]
[Site "Gran Canaria"]
[Date "2025.04.18"]
[Round "7.13"]
[White "Krilovs, Nikolajs"]
[Black "Barlov, Dragan"]
[Result "1-0"]
[Annotator "RC"]
[ECO "E81"]
[WhiteElo "2112"]
[BlackElo "2351"]
[PlyCount "89"]
[EventDate "2025.04.13"]
[EventType "swiss"]
[EventCountry "ESP"]
[SourceTitle "playchess.com"]
[Source "ChessBase"]
[SourceQuality "1"]
[TimeControl "5400+30"]

1. d4 {[%emt 0:00:03]} Nf6 {[%emt 0:03:05]} 2. c4 {[%emt 0:00:15]} g6 {[%emt 0:00:38]} 3. Nc3 {[%emt 0:00:26]} Bg7 {[%emt 0:00:10]} 4. e4 {[%emt 0:00:09]} d6 {[%emt 0:00:03]} 5. f3 {[%emt 0:00:19]} O-O {[%emt 0:00:24]} 6. Be3 {[%emt 0:00:19]} c5 {[%emt 0:07:08]} 7. dxc5 {[%emt 0:04:34]} dxc5 {[%emt 0:00:26]} 8. Qxd8 {[%emt 0:03:08]} Rxd8 {[%emt 0:00:46]} 9. Bxc5 {[%emt 0:00:21]} Nc6 {[%emt 0:00:25]} 10. Rd1 {[%emt 0:14:07]} Nd7 {[%emt 0:19:07]} 11. Ba3 {[%emt 0:04:57]} Bxc3+ {[%emt 0:05:09]} 12. bxc3 {[%emt 0:00:06]} b6 {[%emt 0:00:21]} 13. Ne2 {[%emt 0:08:55]} Kf8 {[%emt 0:21:55]} 14. Nd4 {[%emt 0:04:59]} Bb7 {[%emt 0:00:17]} 15. Be2 {[%emt 0:07:33]} Rac8 {[%emt 0:01:04]} 16. Nxc6 {[%emt 0:01:00]} Bxc6 {[%emt 0:02:51]} 17. Kf2 {[%emt 0:01:03]} Ke8 {[%emt 0:00:45]} 18. Ke3 {[%emt 0:05:54]} Bb7 {[%emt 0:02:26]} 19. h4 {[%emt 0:16:50]} Ba6 {[%emt 0:07:59]} 20. h5 {[%emt 0:01:27]} g5 {[%emt 0:01:13]} 21. Rd4 {[%emt 0:00:18]} Ne5 {[%emt 0:10:02]} 22. c5 {[%emt 0:02:09]} Bxe2 {[%emt 0:00:42]} 23. Kxe2 {[%emt 0:00:04]} b5 {[%emt 0:02:58]} 24. Rhd1 {[%emt 0:03:31]} Rd7 {[%emt 0:02:08]} 25. g3 {[%emt 0:03:16]} Rdc7 {[%emt 0:00:56]} 26. f4 {[%emt 0:00:14]} gxf4 {[%emt 0:00:30]} 27. gxf4 {[%emt 0:00:05]} Nc4 {[%emt 0:00:08]} 28. Rg1 {[%emt 0:01:22]} e5 {[%emt 0:01:15]} 29. Rd5 {[%emt 0:06:58]} Nxa3 {[%emt 0:00:19]} 30. Rg8+ {[%emt 0:00:06]} Ke7 {[%emt 0:00:08]} 31. Rxe5+ {[%emt 0:00:06]} Kd7 {[%emt 0:02:48]} 32. Rg7 {[%emt 0:00:24]} Kc6 {[%emt 0:00:43]} 33. Rxh7 {[%emt 0:00:09]} Nc4 {[%emt 0:00:31]} 34. Rf5 {[%emt 0:01:25]} Rd8 {[%emt 0:03:34]} 35. Rfxf7 {[%emt 0:02:51]} Rxf7 {[%emt 0:05:06]} 36. Rxf7 {[%emt 0:00:06]} Rd2+ {[%emt 0:00:00]} 37. Kf3 {[%emt 0:00:27]} Rxa2 {[%emt 0:00:00]} 38. h6 {[%emt 0:00:27]} a5 {[%emt 0:00:00]} 39. h7 {[%emt 0:02:40]} Rh2 {[%emt 0:00:00]} 40. Kg4 {[%emt 0:00:55]} Nd2 {[%emt 0:01:52]} 41. e5 {[%emt 0:00:41]} b4 {[%emt 0:00:25]} 42. cxb4 {[%emt 0:00:52]} axb4 {[%emt 0:00:01]} 43. e6 {[%emt 0:01:07]} b3 {[%emt 0:00:58]} 44. e7 {[%emt 0:00:12]} Kd7 {[%emt 0:00:05]} 45. c6+ {[%emt 0:00:11]} 1-0

[Event "17th Memorial Lezcano Montalvo 2025"]
[Site "Gran Canaria"]
[Date "2025.04.18"]
[Round "7.14"]
[White "Hu, Jiani"]
[Black "Matnadze Bujiashvili, Ann"]
[Result "1/2-1/2"]
[Annotator "ChessBase"]
[ECO "D77"]
[WhiteElo "2091"]
[BlackElo "2329"]
[PlyCount "63"]
[EventDate "2025.04.13"]
[EventType "swiss"]
[EventCountry "ESP"]
[SourceTitle "playchess.com"]
[Source "ChessBase"]
[SourceQuality "1"]
[TimeControl "5400+30"]

1. d4 {[%emt 0:00:04]} Nf6 {[%emt 0:00:13]} 2. c4 {[%emt 0:00:07]} e6 {[%emt 0:00:10]} 3. g3 {[%emt 0:00:07]} d5 {[%emt 0:00:10]} 4. Bg2 {[%emt 0:00:13]} g6 {[%emt 0:00:44]} 5. Nf3 {[%emt 0:00:15]} Bg7 {[%emt 0:00:07]} 6. O-O {[%emt 0:00:12]} O-O {[%emt 0:00:02]} 7. Nc3 {[%emt 0:00:15]} Na6 {[%emt 0:00:51]} 8. Bg5 {[%emt 0:00:23]} h6 {[%emt 0:00:11]} 9. Bxf6 {[%emt 0:00:49]} Bxf6 {[%emt 0:00:17]} 10. e4 {[%emt 0:00:31]} dxe4 {[%emt 0:03:46]} 11. Nxe4 {[%emt 0:00:12]} Bg7 {[%emt 0:00:01]} 12. Qe2 {[%emt 0:00:39]} Qe7 {[%emt 0:05:20]} 13. Qe3 {[%emt 0:10:46]} Rd8 {[%emt 0:01:33]} 14. Rfd1 {[%emt 0:01:44]} Bd7 {[%emt 0:03:00]} 15. Ne5 {[%emt 0:03:42]} Be8 {[%emt 0:02:59]} 16. a3 {[%emt 0:10:28]} f6 {[%emt 0:02:47]} 17. Nd3 {[%emt 0:03:45]} c6 {[%emt 0:13:00]} 18. Nec5 {[%emt 0:04:00]} Nxc5 {[%emt 0:01:03]} 19. Nxc5 {[%emt 0:00:10]} Bf7 {[%emt 0:00:51]} 20. d5 {[%emt 0:14:26]} cxd5 {[%emt 0:00:09]} 21. cxd5 {[%emt 0:00:08]} e5 {[%emt 0:00:27]} 22. d6 {[%emt 0:08:41]} Rxd6 {[%emt 0:00:10]} 23. Rxd6 {[%emt 0:00:41]} Qxd6 {[%emt 0:00:02]} 24. Nxb7 {[%emt 0:00:38]} Qb6 {[%emt 0:04:20]} 25. Qxb6 {[%emt 0:08:45]} axb6 {[%emt 0:00:01]} 26. Nd6 {[%emt 0:02:09]} Rd8 {[%emt 0:00:20]} 27. Nxf7 {[%emt 0:00:42]} Kxf7 {[%emt 0:00:01]} 28. Rc1 {[%emt 0:00:55]} Rd6 {[%emt 0:05:06]} 29. Rc7+ {[%emt 0:03:14]} Kf8 {[%emt 0:00:07]} 30. Rc8+ {[%emt 0:00:38]} Ke7 {[%emt 0:00:50]} 31. Rc7+ {[%emt 0:00:19]} Kf8 {[%emt 0:00:05]} 32. Rc8+ {[%emt 0:00:13]} 1/2-1/2

[Event "17th Memorial Lezcano Montalvo 2025"]
[Site "Gran Canaria"]
[Date "2025.04.18"]
[Round "7.15"]
[White "Torres Rebolledo, Alvaro"]
[Black "Blanco Garcia Bajo, David"]
[Result "1-0"]
[Annotator "ChessBase"]
[ECO "C00"]
[WhiteElo "2311"]
[BlackElo "2098"]
[PlyCount "97"]
[EventDate "2025.04.13"]
[EventType "swiss"]
[EventCountry "ESP"]
[SourceTitle "playchess.com"]
[Source "ChessBase"]
[SourceQuality "1"]
[TimeControl "5400+30"]

1. e4 {[%emt 0:00:04]} e6 {[%emt 0:00:06]} 2. d3 {[%emt 0:00:09]} d5 {[%emt 0:00:06]} 3. Nd2 {[%emt 0:00:07]} Nc6 {[%emt 0:00:52]} 4. Ngf3 {[%emt 0:00:14]} Nf6 {[%emt 0:00:12]} 5. c3 {[%emt 0:01:00]} a5 {[%emt 0:04:06]} 6. Be2 {[%emt 0:02:59]} dxe4 {[%emt 0:00:46]} 7. dxe4 {[%emt 0:01:27]} e5 {[%emt 0:02:12]} 8. Bb5 {[%emt 0:04:07]} Bg4 {[%emt 0:16:49]} 9. h3 {[%emt 0:02:01]} Bxf3 {[%emt 0:00:25]} 10. Qxf3 {[%emt 0:01:35]} Qd6 {[%emt 0:05:19]} 11. O-O {[%emt 0:03:38]} O-O-O {[%emt 0:01:44]} 12. a4 {[%emt 0:05:52]} Qe6 {[%emt 0:14:30]} 13. Nc4 {[%emt 0:05:11]} b6 {[%emt 0:01:31]} 14. b4 {[%emt 0:11:27]} axb4 {[%emt 0:15:05]} 15. a5 {[%emt 0:01:33]} Nxa5 {[%emt 0:00:22]} 16. Nxa5 {[%emt 0:00:42]} bxa5 {[%emt 0:00:08]} 17. Rxa5 {[%emt 0:00:46]} Bc5 {[%emt 0:02:53]} 18. Ba6+ {[%emt 0:02:50]} Kb8 {[%emt 0:01:52]} 19. Rb5+ {[%emt 0:04:33]} Bb6 {[%emt 0:02:11]} 20. Rxb4 {[%emt 0:00:07]} c5 {[%emt 0:04:43]} 21. Bc4 {[%emt 0:05:34]} Qc6 {[%emt 0:00:25]} 22. Rb2 {[%emt 0:00:40]} Kc7 {[%emt 0:00:54]} 23. Bg5 {[%emt 0:01:02]} Rd6 {[%emt 0:05:40]} 24. Bxf6 {[%emt 0:07:02]} Rxf6 {[%emt 0:00:34]} 25. Qg3 {[%emt 0:01:53]} Rf4 {[%emt 0:05:36]} 26. Qxg7 {[%emt 0:04:22]} Qf6 {[%emt 0:00:05]} 27. Qxf6 {[%emt 0:05:13]} Rxf6 {[%emt 0:00:02]} 28. Rfb1 {[%emt 0:00:07]} Rb8 {[%emt 0:00:28]} 29. g3 {[%emt 0:01:11]} Rf3 {[%emt 0:01:12]} 30. Rb3 {[%emt 0:00:08]} Ba7 {[%emt 0:00:26]} 31. Rxb8 {[%emt 0:04:39]} Bxb8 {[%emt 0:00:30]} 32. Rb3 {[%emt 0:00:04]} Ba7 {[%emt 0:02:02]} 33. Kg2 {[%emt 0:00:40]} Rf6 {[%emt 0:00:05]} 34. Rb2 {[%emt 0:01:30]} Bb6 {[%emt 0:01:38]} 35. Bd5 {[%emt 0:00:27]} Kd7 {[%emt 0:01:30]} 36. Bxf7 {[%emt 0:02:18]} Ba5 {[%emt 0:00:04]} 37. Rb7+ {[%emt 0:00:49]} Kc8 {[%emt 0:00:20]} 38. Rb5 {[%emt 0:00:56]} Bb6 {[%emt 0:00:53]} 39. Bd5 {[%emt 0:01:45]} Kd7 {[%emt 0:00:46]} 40. c4 {[%emt 0:00:41]} Ke7 {[%emt 0:02:28]} 41. Rb3 {[%emt 0:00:42]} Rd6 {[%emt 0:00:55]} 42. f4 {[%emt 0:02:23]} Kf6 {[%emt 0:00:17]} 43. Kf3 {[%emt 0:00:31]} h5 {[%emt 0:02:39]} 44. h4 {[%emt 0:00:48]} Bc7 {[%emt 0:00:25]} 45. Rb7 {[%emt 0:00:36]} Rd7 {[%emt 0:00:08]} 46. Ra7 {[%emt 0:00:28]} Rg7 {[%emt 0:02:34]} 47. Ra6+ {[%emt 0:00:43]} Ke7 {[%emt 0:00:07]} 48. f5 {[%emt 0:00:59]} Kf8 {[%emt 0:01:16]} 49. Rh6 {[%emt 0:01:21]} 1-0